[Event "*** Titled Tuesday Blitz"]
[Site "Chess.com"]
[Date "2020.10.20"]
[Round "7"]
[White "aloe_normansen"]
[Black "bazar-wokzal"]
[Result "1-0"]
[WhiteElo "2357"]
[BlackElo "2498"]
[TimeControl "180+1"]
[EndTime "11:19:55 PDT"]
[Termination "aloe_normansen won by checkmate"]

1. e4 {[%clk 0:03:00.9]} 1... Nc6 {[%clk 0:02:57.2]} 2. Nf3 {[%clk 0:02:59.5]}
2... d5 {[%clk 0:02:57.2]} 3. exd5 {[%clk 0:02:59.8]} 3... Qxd5 {[%clk
0:02:56.8]} 4. Nc3 {[%clk 0:02:59.7]} 4... Qa5 {[%clk 0:02:57]} 5. d4 {[%clk
0:02:56.6]} 5... Bg4 {[%clk 0:02:56.1]} 6. Bb5 {[%clk 0:02:52.1]} 6... O-O-O
{[%clk 0:02:56.2]} 7. Bxc6 {[%clk 0:02:45.1]} 7... bxc6 {[%clk 0:02:57.1]} 8. h3
{[%clk 0:02:22.2]} 8... Qh5 {[%clk 0:02:54.1]} 9. Qe2 {[%clk 0:02:01.5]} 9...
Bxf3 {[%clk 0:02:50.3]} 10. gxf3 {[%clk 0:02:01.1]} 10... e6 {[%clk 0:02:44.2]}
11. Be3 {[%clk 0:02:00.6]} 11... Bb4 {[%clk 0:02:41.2]} 12. Qa6+ {[%clk
0:01:53.7]} 12... Kd7 {[%clk 0:02:40.4]} 13. Qc4 {[%clk 0:01:52.5]} 13... Qb5
{[%clk 0:02:34]} 14. Qb3 {[%clk 0:01:48.6]} 14... Rb8 {[%clk 0:02:26.6]} 15.
O-O-O {[%clk 0:01:46.6]} 15... Bxc3 {[%clk 0:02:18.5]} 16. Qxc3 {[%clk
0:01:46.5]} 16... Ne7 {[%clk 0:02:18.3]} 17. d5 {[%clk 0:01:43.2]} 17... cxd5
{[%clk 0:02:08.9]} 18. Qxg7 {[%clk 0:01:38.3]} 18... c5 {[%clk 0:02:03.9]} 19.
Bf4 {[%clk 0:01:31.4]} 19... Rhg8 {[%clk 0:01:54.2]} 20. Qe5 {[%clk 0:01:28.3]}
20... Rb7 {[%clk 0:01:38.2]} 21. b3 {[%clk 0:01:25]} 21... Rg2 {[%clk
0:01:27.3]} 22. c4 {[%clk 0:01:16.3]} 22... Qb4 {[%clk 0:01:09]} 23. cxd5 {[%clk
0:01:14.5]} 23... exd5 {[%clk 0:00:35.3]} 24. Rhe1 {[%clk 0:00:38.2]} 24... Kc6
{[%clk 0:00:20.3]} 25. Qd6+ {[%clk 0:00:35.7]} 25... Kb5 {[%clk 0:00:20.5]} 26.
Rxe7 {[%clk 0:00:32.8]} 26... Rxe7 {[%clk 0:00:15.3]} 27. a4+ {[%clk 0:00:18.6]}
27... Ka5 {[%clk 0:00:09.4]} 28. Bd2 {[%clk 0:00:18.2]} 28... Qxd2+ {[%clk
0:00:03.2]} 29. Rxd2 {[%clk 0:00:19.1]} 29... Re1+ {[%clk 0:00:02.8]} 30. Kc2
{[%clk 0:00:19.1]} 30... Kb4 {[%clk 0:00:01.6]} 31. Qxd5 {[%clk 0:00:18.2]}
31... Ka3 {[%clk 0:00:01.6]} 32. Qxc5+ {[%clk 0:00:18]} 32... Ka2 {[%clk
0:00:02.2]} 33. Kd3+ {[%clk 0:00:17.3]} 33... Ka1 {[%clk 0:00:02.5]} 34. Qc3+
{[%clk 0:00:17.1]} 34... Kb1 {[%clk 0:00:03.1]} 35. Qb2# {[%clk 0:00:17.3]} 1-0

[Event "*** Titled Tuesday Blitz"]
[Site "Chess.com"]
[Date "2020.10.20"]
[Round "7"]
[White "A-S-00"]
[Black "Koalaskakistis"]
[Result "0-1"]
[WhiteElo "2295"]
[BlackElo "2463"]
[TimeControl "180+1"]
[EndTime "11:19:57 PDT"]
[Termination "Koalaskakistis won on time"]

1. d4 {[%clk 0:02:59.6]} 1... f5 {[%clk 0:02:57.6]} 2. c4 {[%clk 0:02:58.6]}
2... Nf6 {[%clk 0:02:57]} 3. g3 {[%clk 0:02:58.8]} 3... e6 {[%clk 0:02:55.2]} 4.
Bg2 {[%clk 0:02:58.9]} 4... Be7 {[%clk 0:02:56.1]} 5. Nf3 {[%clk 0:02:59.1]}
5... O-O {[%clk 0:02:56.5]} 6. O-O {[%clk 0:02:59.1]} 6... d6 {[%clk 0:02:57.4]}
7. b3 {[%clk 0:02:54.3]} 7... Ne4 {[%clk 0:02:56.2]} 8. Bb2 {[%clk 0:02:54.1]}
8... Bf6 {[%clk 0:02:56.6]} 9. Nbd2 {[%clk 0:02:49.4]} 9... Nc6 {[%clk
0:02:54.5]} 10. e3 {[%clk 0:02:46.1]} 10... Nxd2 {[%clk 0:02:53.5]} 11. Qxd2
{[%clk 0:02:44.4]} 11... e5 {[%clk 0:02:54.4]} 12. Ne1 {[%clk 0:02:37]} 12...
Qe7 {[%clk 0:02:49.4]} 13. Nc2 {[%clk 0:02:29.2]} 13... a5 {[%clk 0:02:47.5]}
14. dxe5 {[%clk 0:02:20.8]} 14... dxe5 {[%clk 0:02:43.2]} 15. Ba3 {[%clk
0:02:19.6]} 15... Qf7 {[%clk 0:02:25.7]} 16. Bxf8 {[%clk 0:02:16.4]} 16... Qxf8
{[%clk 0:02:26.6]} 17. Bd5+ {[%clk 0:02:12]} 17... Kh8 {[%clk 0:02:24.9]} 18.
Rad1 {[%clk 0:02:06.3]} 18... e4 {[%clk 0:02:16.4]} 19. f3 {[%clk 0:02:02.3]}
19... Ne5 {[%clk 0:02:16]} 20. fxe4 {[%clk 0:01:30.2]} 20... c6 {[%clk
0:02:15.3]} 21. exf5 {[%clk 0:01:27.7]} 21... cxd5 {[%clk 0:02:11.3]} 22. cxd5
{[%clk 0:01:25.6]} 22... Bd7 {[%clk 0:01:42.8]} 23. Nd4 {[%clk 0:01:24.6]} 23...
Qd6 {[%clk 0:01:40.9]} 24. Ne6 {[%clk 0:01:20.7]} 24... a4 {[%clk 0:01:34.4]}
25. Qc2 {[%clk 0:01:09.1]} 25... axb3 {[%clk 0:01:30.7]} 26. axb3 {[%clk
0:01:08.6]} 26... h5 {[%clk 0:01:29.5]} 27. Qc7 {[%clk 0:01:03.8]} 27... Qb4
{[%clk 0:01:26]} 28. Qc2 {[%clk 0:00:40.5]} 28... h4 {[%clk 0:01:18.4]} 29. Rf4
{[%clk 0:00:37.5]} 29... Qb6 {[%clk 0:01:15.1]} 30. Qf2 {[%clk 0:00:34.6]} 30...
Bb5 {[%clk 0:00:54.4]} 31. Rb4 {[%clk 0:00:19.2]} 31... h3 {[%clk 0:00:49]} 32.
Nd4 {[%clk 0:00:17]} 32... Nd3 {[%clk 0:00:48.1]} 33. Qd2 {[%clk 0:00:09.6]}
33... Bxd4 {[%clk 0:00:41.5]} 34. Rxd4 {[%clk 0:00:08.4]} 34... Ne5 {[%clk
0:00:39.3]} 35. Rh4+ {[%clk 0:00:07.5]} 35... Kg8 {[%clk 0:00:38.5]} 36. Qf2
{[%clk 0:00:07.4]} 36... Ra2 {[%clk 0:00:28]} 37. Qxa2 {[%clk 0:00:01.2]} 37...
Qxe3+ {[%clk 0:00:28]} 38. Kh1 {[%clk 0:00:01.4]} 38... Qf3+ {[%clk 0:00:27.1]}
0-1

[Event "*** Titled Tuesday Blitz"]
[Site "Chess.com"]
[Date "2020.10.20"]
[Round "7"]
[White "googlegoom"]
[Black "vaishali2001"]
[Result "1-0"]
[WhiteElo "2376"]
[BlackElo "2562"]
[TimeControl "180+1"]
[EndTime "11:19:57 PDT"]
[Termination "googlegoom won on time"]

1. Nf3 {[%clk 0:03:00.9]} 1... Nf6 {[%clk 0:02:59.5]} 2. b3 {[%clk 0:03:01.1]}
2... b6 {[%clk 0:02:59.3]} 3. Bb2 {[%clk 0:03:01.6]} 3... Bb7 {[%clk 0:03:00.2]}
4. e3 {[%clk 0:03:02.3]} 4... g6 {[%clk 0:03:00.5]} 5. Be2 {[%clk 0:03:03]} 5...
Bg7 {[%clk 0:03:01.1]} 6. O-O {[%clk 0:03:03.7]} 6... O-O {[%clk 0:03:01.7]} 7.
d4 {[%clk 0:03:04.6]} 7... c5 {[%clk 0:03:01.8]} 8. Nbd2 {[%clk 0:03:05.5]} 8...
d6 {[%clk 0:03:01.4]} 9. c4 {[%clk 0:03:04.9]} 9... Nbd7 {[%clk 0:02:52.5]} 10.
Qc2 {[%clk 0:03:03.8]} 10... a6 {[%clk 0:02:50.6]} 11. Rac1 {[%clk 0:03:03.9]}
11... Qc7 {[%clk 0:02:49]} 12. Qb1 {[%clk 0:03:03.9]} 12... e5 {[%clk
0:02:46.9]} 13. dxe5 {[%clk 0:03:03.2]} 13... dxe5 {[%clk 0:02:43.8]} 14. Rfd1
{[%clk 0:03:03.2]} 14... e4 {[%clk 0:02:40.7]} 15. Ne1 {[%clk 0:03:03.2]} 15...
h5 {[%clk 0:02:40.3]} 16. h3 {[%clk 0:03:02.2]} 16... Rad8 {[%clk 0:02:31.5]}
17. Qa1 {[%clk 0:03:02.1]} 17... Rfe8 {[%clk 0:02:27.7]} 18. Nb1 {[%clk
0:02:58.9]} 18... Re6 {[%clk 0:02:04.6]} 19. Nc3 {[%clk 0:02:56.3]} 19... Nf8
{[%clk 0:01:59.6]} 20. Rxd8 {[%clk 0:02:55.4]} 20... Qxd8 {[%clk 0:02:00.5]} 21.
Rd1 {[%clk 0:02:48.1]} 21... Rd6 {[%clk 0:01:55.5]} 22. Rxd6 {[%clk 0:02:35.3]}
22... Qxd6 {[%clk 0:01:56.4]} 23. Na4 {[%clk 0:02:32.7]} 23... N8d7 {[%clk
0:01:44.6]} 24. Qd1 {[%clk 0:02:19.7]} 24... Ne8 {[%clk 0:01:37.6]} 25. Bxg7
{[%clk 0:02:17]} 25... Kxg7 {[%clk 0:01:34.8]} 26. Qxd6 {[%clk 0:02:05.3]} 26...
Nxd6 {[%clk 0:01:35.7]} 27. h4 {[%clk 0:02:05.8]} 27... Kf6 {[%clk 0:01:24.8]}
28. g3 {[%clk 0:02:03.6]} 28... Ke5 {[%clk 0:01:24.4]} 29. Kf1 {[%clk
0:02:03.1]} 29... b5 {[%clk 0:01:11.9]} 30. cxb5 {[%clk 0:02:02.8]} 30... axb5
{[%clk 0:01:12.8]} 31. Nc3 {[%clk 0:02:02.9]} 31... b4 {[%clk 0:01:06.1]} 32.
Nd1 {[%clk 0:01:49]} 32... Nb6 {[%clk 0:01:00]} 33. Nb2 {[%clk 0:01:48.6]} 33...
Bd5 {[%clk 0:01:00]} 34. Nc2 {[%clk 0:01:41.7]} 34... f6 {[%clk 0:00:55]} 35.
Ke1 {[%clk 0:01:41.4]} 35... Bf7 {[%clk 0:00:54.8]} 36. Kd2 {[%clk 0:01:41.4]}
36... g5 {[%clk 0:00:54.8]} 37. Na4 {[%clk 0:01:27.9]} 37... Nxa4 {[%clk
0:00:49.5]} 38. bxa4 {[%clk 0:01:28.8]} 38... Bxa2 {[%clk 0:00:39.1]} 39. a5
{[%clk 0:01:29]} 39... Nc4+ {[%clk 0:00:35.8]} 40. Kc1 {[%clk 0:01:27.1]} 40...
Nxa5 {[%clk 0:00:31.5]} 41. Bxh5 {[%clk 0:01:27.1]} 41... gxh4 {[%clk 0:00:31]}
42. gxh4 {[%clk 0:01:27.1]} 42... b3 {[%clk 0:00:25]} 43. Na3 {[%clk 0:01:26.5]}
43... c4 {[%clk 0:00:24.8]} 44. Kb2 {[%clk 0:01:23.2]} 44... Kd5 {[%clk
0:00:18.9]} 45. Bf7+ {[%clk 0:01:20.9]} 45... Kc5 {[%clk 0:00:16.4]} 46. h5
{[%clk 0:01:18.8]} 46... Kb4 {[%clk 0:00:08.6]} 47. Nxc4 {[%clk 0:01:17.4]}
47... Nb7 {[%clk 0:00:06.3]} 48. h6 {[%clk 0:01:12.9]} 48... Nc5 {[%clk
0:00:06.6]} 49. Nd2 {[%clk 0:00:56.4]} 49... Nd3+ {[%clk 0:00:03.8]} 50. Ka1
{[%clk 0:00:56.8]} 50... Ka3 {[%clk 0:00:02.8]} 51. Bxb3 {[%clk 0:00:54]} 1-0

[Event "*** Titled Tuesday Blitz"]
[Site "Chess.com"]
[Date "2020.10.20"]
[Round "7"]
[White "Margency"]
[Black "Anna_ChessMate"]
[Result "0-1"]
[WhiteElo "2680"]
[BlackElo "2550"]
[TimeControl "180+1"]
[EndTime "11:19:59 PDT"]
[Termination "Anna_ChessMate won by checkmate"]

1. e4 {[%clk 0:03:00.9]} 1... c6 {[%clk 0:02:58.8]} 2. d4 {[%clk 0:03:00.8]}
2... d5 {[%clk 0:02:58.8]} 3. exd5 {[%clk 0:03:01.7]} 3... cxd5 {[%clk
0:02:57.4]} 4. c4 {[%clk 0:03:02.4]} 4... Nf6 {[%clk 0:02:57.1]} 5. Nc3 {[%clk
0:03:01.8]} 5... Nc6 {[%clk 0:02:57.6]} 6. Bg5 {[%clk 0:02:59.6]} 6... Be6
{[%clk 0:02:57.3]} 7. a3 {[%clk 0:02:58.8]} 7... g6 {[%clk 0:02:52]} 8. Bxf6
{[%clk 0:02:57.2]} 8... exf6 {[%clk 0:02:52.9]} 9. cxd5 {[%clk 0:02:57.6]} 9...
Bxd5 {[%clk 0:02:51.9]} 10. Qe2+ {[%clk 0:02:57.9]} 10... Ne7 {[%clk 0:02:46.3]}
11. Nxd5 {[%clk 0:02:56.6]} 11... Qxd5 {[%clk 0:02:47.2]} 12. Qb5+ {[%clk
0:02:56.8]} 12... Qxb5 {[%clk 0:02:46.9]} 13. Bxb5+ {[%clk 0:02:56.6]} 13... Kd8
{[%clk 0:02:47.5]} 14. Ne2 {[%clk 0:02:54.9]} 14... f5 {[%clk 0:02:44.5]} 15.
O-O-O {[%clk 0:02:50.4]} 15... Bg7 {[%clk 0:02:44.8]} 16. Nc3 {[%clk 0:02:38]}
16... Rc8 {[%clk 0:02:41.6]} 17. Kb1 {[%clk 0:02:35.7]} 17... a6 {[%clk
0:02:41.6]} 18. Ba4 {[%clk 0:02:34.3]} 18... Nc6 {[%clk 0:02:36.5]} 19. Rhe1
{[%clk 0:02:23.5]} 19... Rc7 {[%clk 0:02:17.4]} 20. d5 {[%clk 0:02:17]} 20...
Nd4 {[%clk 0:02:15.9]} 21. Rd3 {[%clk 0:01:55.2]} 21... b5 {[%clk 0:02:13.5]}
22. Bd1 {[%clk 0:01:53.1]} 22... Re8 {[%clk 0:02:11.6]} 23. Ree3 {[%clk
0:01:45.6]} 23... Rd7 {[%clk 0:01:59.7]} 24. b4 {[%clk 0:01:21.1]} 24... Rxe3
{[%clk 0:01:55.7]} 25. fxe3 {[%clk 0:01:20.8]} 25... Nc6 {[%clk 0:01:55.7]} 26.
Ne2 {[%clk 0:00:56]} 26... Ne5 {[%clk 0:01:55.4]} 27. Rd2 {[%clk 0:00:48.8]}
27... Nc4 {[%clk 0:01:55.7]} 28. Rd3 {[%clk 0:00:48.7]} 28... Re7 {[%clk
0:01:36]} 29. Nd4 {[%clk 0:00:34.8]} 29... Bxd4 {[%clk 0:01:31.7]} 30. exd4
{[%clk 0:00:33.6]} 30... Re1 {[%clk 0:01:22.1]} 31. Ka2 {[%clk 0:00:24]} 31...
Kd7 {[%clk 0:01:21.2]} 32. Bf3 {[%clk 0:00:22.9]} 32... Kd6 {[%clk 0:01:18.4]}
33. a4 {[%clk 0:00:22.2]} 33... Re3 {[%clk 0:01:17.3]} 34. Rxe3 {[%clk
0:00:20.4]} 34... Nxe3 {[%clk 0:01:18.2]} 35. axb5 {[%clk 0:00:20.9]} 35... axb5
{[%clk 0:01:19.1]} 36. Kb3 {[%clk 0:00:21.3]} 36... Nxd5 {[%clk 0:01:17.7]} 37.
Be2 {[%clk 0:00:21.8]} 37... Nc7 {[%clk 0:01:17.6]} 38. Kc3 {[%clk 0:00:21.6]}
38... f6 {[%clk 0:01:14.4]} 39. h4 {[%clk 0:00:21.3]} 39... h6 {[%clk
0:01:01.5]} 40. Bd3 {[%clk 0:00:20.5]} 40... h5 {[%clk 0:00:57.1]} 41. Kb3
{[%clk 0:00:20.2]} 41... Kc6 {[%clk 0:00:55.4]} 42. Kc3 {[%clk 0:00:19.6]} 42...
Nd5+ {[%clk 0:00:54.8]} 43. Kb3 {[%clk 0:00:20]} 43... Nf4 {[%clk 0:00:55.3]}
44. Bf1 {[%clk 0:00:19.3]} 44... g5 {[%clk 0:00:54.5]} 45. g3 {[%clk 0:00:18.5]}
45... Ne6 {[%clk 0:00:54.2]} 46. d5+ {[%clk 0:00:16.9]} 46... Kxd5 {[%clk
0:00:53]} 47. Bxb5 {[%clk 0:00:17.5]} 47... Nd4+ {[%clk 0:00:53]} 48. Ka4 {[%clk
0:00:17.1]} 48... Nxb5 {[%clk 0:00:45.4]} 49. Kxb5 {[%clk 0:00:18]} 49... f4
{[%clk 0:00:46.3]} 50. gxf4 {[%clk 0:00:17.6]} 50... gxf4 {[%clk 0:00:47.2]} 51.
Ka6 {[%clk 0:00:17.9]} 51... f3 {[%clk 0:00:47.5]} 52. b5 {[%clk 0:00:18.8]}
52... f2 {[%clk 0:00:47.6]} 53. b6 {[%clk 0:00:19.7]} 53... f1=Q+ {[%clk
0:00:48]} 54. Ka7 {[%clk 0:00:20.6]} 54... Kc6 {[%clk 0:00:46.4]} 55. b7 {[%clk
0:00:20.5]} 55... Qa1+ {[%clk 0:00:46.8]} 56. Kb8 {[%clk 0:00:20.6]} 56... Qb2
{[%clk 0:00:45.6]} 57. Kc8 {[%clk 0:00:21.5]} 57... Qxb7+ {[%clk 0:00:45.5]} 58.
Kd8 {[%clk 0:00:22.4]} 58... Qd7# {[%clk 0:00:45.9]} 0-1

[Event "*** Titled Tuesday Blitz"]
[Site "Chess.com"]
[Date "2020.10.20"]
[Round "7"]
[White "ExtremeLearner"]
[Black "TheMagnet"]
[Result "1/2-1/2"]
[WhiteElo "2387"]
[BlackElo "2582"]
[TimeControl "180+1"]
[EndTime "11:20:02 PDT"]
[Termination "Game drawn by repetition"]

1. d4 {[%clk 0:03:00.9]} 1... Nf6 {[%clk 0:02:58.4]} 2. Nf3 {[%clk 0:02:59.8]}
2... g6 {[%clk 0:02:58.6]} 3. g3 {[%clk 0:03:00]} 3... Bg7 {[%clk 0:02:59.1]} 4.
Bg2 {[%clk 0:03:00.9]} 4... O-O {[%clk 0:02:59.8]} 5. O-O {[%clk 0:03:00.7]}
5... d6 {[%clk 0:03:00.5]} 6. b3 {[%clk 0:02:59.8]} 6... c5 {[%clk 0:02:58.1]}
7. Bb2 {[%clk 0:02:56]} 7... Nc6 {[%clk 0:02:58.3]} 8. dxc5 {[%clk 0:02:54.6]}
8... dxc5 {[%clk 0:02:58.3]} 9. Qxd8 {[%clk 0:02:54.8]} 9... Rxd8 {[%clk
0:02:59.2]} 10. c4 {[%clk 0:02:52]} 10... Ne4 {[%clk 0:02:45.6]} 11. Bxg7 {[%clk
0:02:43.9]} 11... Kxg7 {[%clk 0:02:46.5]} 12. Na3 {[%clk 0:02:40]} 12... Bg4
{[%clk 0:02:33.7]} 13. Rfd1 {[%clk 0:02:24.2]} 13... Nc3 {[%clk 0:02:25.5]} 14.
Re1 {[%clk 0:02:23.8]} 14... Rac8 {[%clk 0:02:11.7]} 15. Nb5 {[%clk 0:02:18.7]}
15... Nxb5 {[%clk 0:02:02.4]} 16. cxb5 {[%clk 0:02:19.6]} 16... Nb4 {[%clk
0:02:00.1]} 17. Rec1 {[%clk 0:02:14.1]} 17... Bxf3 {[%clk 0:01:56.4]} 18. Bxf3
{[%clk 0:02:12.9]} 18... b6 {[%clk 0:01:54]} 19. a3 {[%clk 0:01:55.5]} 19... Nd5
{[%clk 0:01:53.3]} 20. Bxd5 {[%clk 0:01:55.8]} 20... Rxd5 {[%clk 0:01:54.2]} 21.
a4 {[%clk 0:01:49.5]} 21... Rd2 {[%clk 0:01:49.6]} 22. Kf1 {[%clk 0:01:45.1]}
22... Rcd8 {[%clk 0:01:49.6]} 23. a5 {[%clk 0:01:43.8]} 23... Rb2 {[%clk
0:01:39.6]} 24. Rc3 {[%clk 0:01:38.3]} 24... Rd6 {[%clk 0:01:11.7]} 25. Re3
{[%clk 0:01:29.3]} 25... e6 {[%clk 0:01:08.3]} 26. h4 {[%clk 0:01:24.8]} 26...
f5 {[%clk 0:01:00.5]} 27. axb6 {[%clk 0:01:13.9]} 27... axb6 {[%clk 0:00:56.4]}
28. Ra7+ {[%clk 0:01:13.5]} 28... Kf6 {[%clk 0:00:56.8]} 29. Rxh7 {[%clk
0:01:09.2]} 29... Rd1+ {[%clk 0:00:55.9]} 30. Kg2 {[%clk 0:01:09.2]} 30... Rdd2
{[%clk 0:00:53.6]} 31. Rb7 {[%clk 0:00:33.7]} 31... Rxe2 {[%clk 0:00:51.8]} 32.
Rxe2 {[%clk 0:00:33.3]} 32... Rxe2 {[%clk 0:00:51.8]} 33. Rxb6 {[%clk
0:00:33.9]} 33... Rb2 {[%clk 0:00:51.8]} 34. Rc6 {[%clk 0:00:33.6]} 34... Rxb3
{[%clk 0:00:51.5]} 35. Rxc5 {[%clk 0:00:34.2]} 35... e5 {[%clk 0:00:45.7]} 36.
Rc6+ {[%clk 0:00:34]} 36... Kf7 {[%clk 0:00:46.3]} 37. b6 {[%clk 0:00:34.5]}
37... e4 {[%clk 0:00:46.8]} 38. Kf1 {[%clk 0:00:19.8]} 38... Rb2 {[%clk
0:00:44.4]} 39. h5 {[%clk 0:00:16.8]} 39... gxh5 {[%clk 0:00:43.5]} 40. Rh6
{[%clk 0:00:17.1]} 40... Kg7 {[%clk 0:00:43.2]} 41. Rd6 {[%clk 0:00:10]} 41...
Kf7 {[%clk 0:00:27.3]} 42. Ke1 {[%clk 0:00:08.2]} 42... Kg7 {[%clk 0:00:27.1]}
43. Rc6 {[%clk 0:00:07.5]} 43... Kf7 {[%clk 0:00:26.7]} 44. Kf1 {[%clk
0:00:06.2]} 44... Kg7 {[%clk 0:00:26.6]} 45. Rd6 {[%clk 0:00:05.9]} 45... Kf7
{[%clk 0:00:26.8]} 46. Rc6 {[%clk 0:00:06.4]} 46... Kg7 {[%clk 0:00:27.3]} 47.
Rd6 {[%clk 0:00:06]} 1/2-1/2

[Event "*** Titled Tuesday Blitz"]
[Site "Chess.com"]
[Date "2020.10.20"]
[Round "7"]
[White "PhileKhoob"]
[Black "AttackSparrow"]
[Result "1-0"]
[WhiteElo "2540"]
[BlackElo "2388"]
[TimeControl "180+1"]
[EndTime "11:20:02 PDT"]
[Termination "PhileKhoob won on time"]

1. Nf3 {[%clk 0:03:00.9]} 1... Nf6 {[%clk 0:02:59.7]} 2. g3 {[%clk 0:02:59.6]}
2... g6 {[%clk 0:02:59.7]} 3. Bg2 {[%clk 0:02:59.9]} 3... Bg7 {[%clk 0:03:00.3]}
4. O-O {[%clk 0:03:00.8]} 4... O-O {[%clk 0:03:00.8]} 5. d4 {[%clk 0:03:01.1]}
5... d6 {[%clk 0:03:01.2]} 6. c4 {[%clk 0:03:00.8]} 6... c6 {[%clk 0:03:01.6]}
7. b3 {[%clk 0:02:53]} 7... Qa5 {[%clk 0:02:57.4]} 8. Bb2 {[%clk 0:02:52.6]}
8... Qh5 {[%clk 0:02:56]} 9. Nbd2 {[%clk 0:02:52.4]} 9... Bh3 {[%clk 0:02:53.3]}
10. e4 {[%clk 0:02:51.1]} 10... Ng4 {[%clk 0:02:52.6]} 11. Nh4 {[%clk
0:02:37.7]} 11... Bxg2 {[%clk 0:02:51.7]} 12. Kxg2 {[%clk 0:02:37.3]} 12... Nd7
{[%clk 0:02:21.8]} 13. Qe2 {[%clk 0:02:33]} 13... e5 {[%clk 0:02:19.8]} 14. d5
{[%clk 0:02:28.4]} 14... cxd5 {[%clk 0:02:19.1]} 15. cxd5 {[%clk 0:02:27]} 15...
f5 {[%clk 0:02:03.4]} 16. h3 {[%clk 0:02:09.4]} 16... Ngf6 {[%clk 0:02:00.8]}
17. Qxh5 {[%clk 0:02:09.5]} 17... Nxh5 {[%clk 0:02:01.7]} 18. Rac1 {[%clk
0:02:06]} 18... Nc5 {[%clk 0:01:50.4]} 19. exf5 {[%clk 0:01:39.7]} 19... gxf5
{[%clk 0:01:40.2]} 20. Ba3 {[%clk 0:01:37.9]} 20... b6 {[%clk 0:01:30.4]} 21. b4
{[%clk 0:01:31]} 21... Nd3 {[%clk 0:01:22.4]} 22. Rc6 {[%clk 0:01:31.9]} 22...
Rac8 {[%clk 0:00:58.1]} 23. b5 {[%clk 0:01:30.8]} 23... Nc5 {[%clk 0:00:13.7]}
24. Nc4 {[%clk 0:01:28.1]} 24... f4 {[%clk 0:00:05.5]} 25. Nxd6 {[%clk 0:01:15]}
25... Rcd8 {[%clk 0:00:05.7]} 26. Bxc5 {[%clk 0:01:08.4]} 26... bxc5 {[%clk
0:00:06]} 27. Nhf5 {[%clk 0:01:06.6]} 27... e4 {[%clk 0:00:02.7]} 28. g4 {[%clk
0:01:00]} 28... f3+ {[%clk 0:00:03]} 29. Kh2 {[%clk 0:01:00.2]} 29... Be5+
{[%clk 0:00:03.2]} 30. Kg1 {[%clk 0:00:57.5]} 30... Nf4 {[%clk 0:00:04.1]} 31.
Rd1 {[%clk 0:00:46.5]} 31... Nxh3+ {[%clk 0:00:04.3]} 32. Kf1 {[%clk 0:00:46.6]}
32... Ng5 {[%clk 0:00:02.8]} 33. Nxe4 {[%clk 0:00:38.3]} 33... Nxe4 {[%clk
0:00:02.4]} 34. Re6 {[%clk 0:00:35]} 34... Ng5 {[%clk 0:00:01.6]} 35. Rxe5
{[%clk 0:00:33.6]} 35... Nf7 {[%clk 0:00:01.9]} 36. Re7 {[%clk 0:00:30.9]} 36...
Rfe8 {[%clk 0:00:02.2]} 37. Rxa7 {[%clk 0:00:22.3]} 37... c4 {[%clk 0:00:01.3]}
38. Rc7 {[%clk 0:00:21.4]} 1-0

[Event "*** Titled Tuesday Blitz"]
[Site "Chess.com"]
[Date "2020.10.20"]
[Round "7"]
[White "natelleka"]
[Black "MasterSonnevanck23"]
[Result "1-0"]
[WhiteElo "2208"]
[BlackElo "2334"]
[TimeControl "180+1"]
[EndTime "11:20:03 PDT"]
[Termination "natelleka won on time"]

1. e4 {[%clk 0:03:00.9]} 1... d6 {[%clk 0:02:58.8]} 2. d4 {[%clk 0:03:00.3]}
2... Nf6 {[%clk 0:02:59.4]} 3. Nc3 {[%clk 0:03:00.3]} 3... g6 {[%clk 0:03:00]}
4. Bg5 {[%clk 0:03:00.5]} 4... Bg7 {[%clk 0:03:00.1]} 5. Qd2 {[%clk 0:03:00.9]}
5... O-O {[%clk 0:03:00.5]} 6. O-O-O {[%clk 0:03:01.3]} 6... c6 {[%clk
0:03:00.1]} 7. f4 {[%clk 0:03:01.1]} 7... b5 {[%clk 0:02:52.6]} 8. Bd3 {[%clk
0:02:57.4]} 8... b4 {[%clk 0:02:50.8]} 9. Nce2 {[%clk 0:02:55.5]} 9... a5 {[%clk
0:02:45.3]} 10. Nf3 {[%clk 0:02:52.5]} 10... d5 {[%clk 0:02:44.2]} 11. Ng3
{[%clk 0:02:41.9]} 11... dxe4 {[%clk 0:02:32]} 12. Nxe4 {[%clk 0:02:40.9]} 12...
Nd5 {[%clk 0:02:27.9]} 13. Rhe1 {[%clk 0:02:28.8]} 13... a4 {[%clk 0:02:26]} 14.
Kb1 {[%clk 0:02:27.4]} 14... Qb6 {[%clk 0:02:20.7]} 15. Bc4 {[%clk 0:01:59.4]}
15... Be6 {[%clk 0:02:13.3]} 16. Bxd5 {[%clk 0:01:36.4]} 16... Bxd5 {[%clk
0:02:01.6]} 17. Bxe7 {[%clk 0:01:28.6]} 17... b3 {[%clk 0:01:38.7]} 18. Bxf8
{[%clk 0:01:19.2]} 18... Kxf8 {[%clk 0:01:29.6]} 19. Nc5 {[%clk 0:01:01.8]}
19... bxa2+ {[%clk 0:01:24.4]} 20. Ka1 {[%clk 0:01:00.5]} 20... a3 {[%clk
0:01:24.7]} 21. c3 {[%clk 0:00:49.4]} 21... axb2+ {[%clk 0:01:06.8]} 22. Qxb2
{[%clk 0:00:48.4]} 22... Qc7 {[%clk 0:01:01.5]} 23. Qb4 {[%clk 0:00:24.5]} 23...
Kg8 {[%clk 0:00:50.4]} 24. Re8+ {[%clk 0:00:23]} 24... Bf8 {[%clk 0:00:50.3]}
25. Rxf8+ {[%clk 0:00:22.5]} 25... Kg7 {[%clk 0:00:48.1]} 26. Re8 {[%clk
0:00:15.3]} 26... Qxf4 {[%clk 0:00:46.3]} 27. Qb2 {[%clk 0:00:08.7]} 27... Qf5
{[%clk 0:00:39.5]} 28. Rde1 {[%clk 0:00:08.3]} 28... Nd7 {[%clk 0:00:37.8]} 29.
Rxa8 {[%clk 0:00:06.9]} 29... Nxc5 {[%clk 0:00:36.6]} 30. dxc5 {[%clk
0:00:07.1]} 30... Bc4 {[%clk 0:00:34]} 31. Rxa2 {[%clk 0:00:07.1]} 31... Bxa2
{[%clk 0:00:31.8]} 32. Kxa2 {[%clk 0:00:07.2]} 32... Qd3 {[%clk 0:00:31.5]} 33.
Qe2 {[%clk 0:00:07.3]} 33... Qd5+ {[%clk 0:00:28.7]} 34. c4 {[%clk 0:00:04.7]}
34... Qxc5 {[%clk 0:00:26.9]} 35. Qe5+ {[%clk 0:00:05.2]} 35... Qxe5 {[%clk
0:00:26.3]} 36. Nxe5 {[%clk 0:00:05.9]} 1-0